[Event "*** Titled Tuesday Blitz"]
[Site "Chess.com"]
[Date "2020.04.07"]
[Round "6"]
[White "tandaleo"]
[Black "Stouuf"]
[Result "1-0"]
[WhiteElo "2346"]
[BlackElo "2499"]
[TimeControl "180+1"]
[EndTime "14:09:39 PDT"]
[Termination "tandaleo won on time"]

1. d4 {[%clk 0:03:00.9]} 1... d6 {[%clk 0:03:00.2]} 2. c4 {[%clk 0:03:00.5]}
2... e5 {[%clk 0:02:59.7]} 3. Nf3 {[%clk 0:03:00.3]} 3... e4 {[%clk 0:02:59.6]}
4. Ng5 {[%clk 0:02:59.7]} 4... f5 {[%clk 0:02:59.9]} 5. g3 {[%clk 0:02:58.5]}
5... c6 {[%clk 0:02:58.1]} 6. Bg2 {[%clk 0:02:57.7]} 6... Nf6 {[%clk 0:02:58.5]}
7. Nc3 {[%clk 0:02:56.9]} 7... Be7 {[%clk 0:02:58.7]} 8. O-O {[%clk 0:02:48.1]}
8... h6 {[%clk 0:02:58.1]} 9. Nh3 {[%clk 0:02:47.6]} 9... Nbd7 {[%clk
0:02:57.8]} 10. Nf4 {[%clk 0:02:45.5]} 10... Nf8 {[%clk 0:02:58.2]} 11. d5
{[%clk 0:02:44.6]} 11... c5 {[%clk 0:02:56.6]} 12. e3 {[%clk 0:02:29.1]} 12...
g5 {[%clk 0:02:56.6]} 13. Nh5 {[%clk 0:02:28.7]} 13... Ng6 {[%clk 0:02:48.4]}
14. b3 {[%clk 0:02:24.6]} 14... O-O {[%clk 0:02:45]} 15. Bb2 {[%clk 0:02:23.9]}
15... Ng4 {[%clk 0:02:40.9]} 16. Nxe4 {[%clk 0:01:28]} 16... fxe4 {[%clk
0:02:32.8]} 17. Bxe4 {[%clk 0:01:28.3]} 17... Qe8 {[%clk 0:02:11.8]} 18. f4
{[%clk 0:01:14]} 18... N6e5 {[%clk 0:01:47.5]} 19. fxe5 {[%clk 0:00:34]} 19...
Rxf1+ {[%clk 0:01:23.3]} 20. Qxf1 {[%clk 0:00:29.3]} 20... Qxh5 {[%clk
0:01:22.5]} 21. Qe2 {[%clk 0:00:26.9]} 21... Nf6 {[%clk 0:00:39.6]} 22. Qxh5
{[%clk 0:00:26.1]} 22... Nxh5 {[%clk 0:00:39.5]} 23. exd6 {[%clk 0:00:10.3]}
23... Bxd6 {[%clk 0:00:40.4]} 24. Bg6 {[%clk 0:00:10.3]} 24... Ng7 {[%clk
0:00:39]} 25. e4 {[%clk 0:00:10.8]} 25... Be7 {[%clk 0:00:33.1]} 26. e5 {[%clk
0:00:09.3]} 26... Bf5 {[%clk 0:00:33.6]} 27. Bxf5 {[%clk 0:00:06.4]} 27... Nxf5
{[%clk 0:00:34.5]} 28. Rf1 {[%clk 0:00:06.4]} 28... Rf8 {[%clk 0:00:27.9]} 29.
g4 {[%clk 0:00:06.2]} 29... Nd4 {[%clk 0:00:22.9]} 30. Bxd4 {[%clk 0:00:04.4]}
30... Rxf1+ {[%clk 0:00:20.8]} 31. Kxf1 {[%clk 0:00:04.8]} 31... cxd4 {[%clk
0:00:21.7]} 32. Ke2 {[%clk 0:00:05.7]} 32... Bc5 {[%clk 0:00:20.2]} 33. Kd3
{[%clk 0:00:06.2]} 33... Kf7 {[%clk 0:00:20.2]} 34. b4 {[%clk 0:00:06.4]} 34...
Bxb4 {[%clk 0:00:18.8]} 35. Kxd4 {[%clk 0:00:06.8]} 35... a5 {[%clk 0:00:18.4]}
36. Ke4 {[%clk 0:00:06.8]} 36... Bc3 {[%clk 0:00:15.6]} 37. Kf5 {[%clk
0:00:06.6]} 37... Bb4 {[%clk 0:00:14.1]} 38. d6 {[%clk 0:00:05]} 38... a4 {[%clk
0:00:09.5]} 39. e6+ {[%clk 0:00:05.3]} 39... Ke8 {[%clk 0:00:10]} 40. d7+ {[%clk
0:00:03.3]} 40... Ke7 {[%clk 0:00:09.4]} 41. Kg6 {[%clk 0:00:04.1]} 41... Ba5
{[%clk 0:00:08.5]} 42. Kxh6 {[%clk 0:00:05]} 42... Kxe6 {[%clk 0:00:08.1]} 43.
Kxg5 {[%clk 0:00:05.9]} 43... Kxd7 {[%clk 0:00:08.6]} 44. Kg6 {[%clk 0:00:06.8]}
44... Kc6 {[%clk 0:00:07.1]} 45. h4 {[%clk 0:00:06.5]} 45... Kc5 {[%clk
0:00:07.7]} 46. h5 {[%clk 0:00:06.3]} 46... Kxc4 {[%clk 0:00:08.6]} 47. h6
{[%clk 0:00:06.8]} 47... Bc3 {[%clk 0:00:09.2]} 48. Kf7 {[%clk 0:00:07.1]} 48...
b5 {[%clk 0:00:09.7]} 49. g5 {[%clk 0:00:07.7]} 49... b4 {[%clk 0:00:10.4]} 50.
g6 {[%clk 0:00:08.4]} 50... b3 {[%clk 0:00:11.3]} 51. axb3+ {[%clk 0:00:08.1]}
51... axb3 {[%clk 0:00:11.8]} 52. g7 {[%clk 0:00:09]} 52... b2 {[%clk
0:00:11.4]} 53. g8=Q {[%clk 0:00:09.9]} 53... b1=Q {[%clk 0:00:11.9]} 54. Qg4+
{[%clk 0:00:08.1]} 54... Bd4 {[%clk 0:00:11.3]} 55. Qe6+ {[%clk 0:00:08.3]}
55... Kc3 {[%clk 0:00:11.2]} 56. Qc6+ {[%clk 0:00:08.5]} 56... Kd2 {[%clk
0:00:11.2]} 57. Qg2+ {[%clk 0:00:08.7]} 57... Ke3 {[%clk 0:00:10.3]} 58. Qg5+
{[%clk 0:00:08.4]} 58... Ke2 {[%clk 0:00:08.8]} 59. Qg4+ {[%clk 0:00:08.2]}
59... Kd2 {[%clk 0:00:08.8]} 60. Qxd4+ {[%clk 0:00:06.6]} 60... Ke2 {[%clk
0:00:07.8]} 61. Qg4+ {[%clk 0:00:06.2]} 61... Ke3 {[%clk 0:00:07.8]} 62. Qg5+
{[%clk 0:00:06.4]} 62... Kf3 {[%clk 0:00:07.7]} 63. Qf6+ {[%clk 0:00:05.1]}
63... Ke3 {[%clk 0:00:06.3]} 64. Qe5+ {[%clk 0:00:04.7]} 64... Kd2 {[%clk
0:00:06]} 65. Qf4+ {[%clk 0:00:04.5]} 65... Ke2 {[%clk 0:00:06.1]} 66. Kg7
{[%clk 0:00:04.5]} 66... Qb7+ {[%clk 0:00:04.8]} 67. Qf7 {[%clk 0:00:04.9]}
67... Qb2+ {[%clk 0:00:04.7]} 68. Qf6 {[%clk 0:00:05.2]} 68... Qb7+ {[%clk
0:00:05.2]} 69. Kg6 {[%clk 0:00:05.4]} 69... Qg2+ {[%clk 0:00:05]} 70. Kh5
{[%clk 0:00:05.2]} 70... Qh3+ {[%clk 0:00:04.4]} 71. Kg6 {[%clk 0:00:05.5]}
71... Qg4+ {[%clk 0:00:04.2]} 72. Qg5 {[%clk 0:00:06.2]} 72... Qe6+ {[%clk
0:00:04.5]} 73. Kh5 {[%clk 0:00:06.1]} 73... Qf7+ {[%clk 0:00:04.4]} 74. Qg6
{[%clk 0:00:06.6]} 74... Qd5+ {[%clk 0:00:03.9]} 75. Kh4 {[%clk 0:00:06.9]}
75... Qh1+ {[%clk 0:00:03.7]} 76. Kg5 {[%clk 0:00:07.1]} 76... Qg2+ {[%clk
0:00:02.7]} 77. Kf6 {[%clk 0:00:08]} 77... Qc6+ {[%clk 0:00:02.8]} 78. Kg7
{[%clk 0:00:08]} 78... Qd7+ {[%clk 0:00:03.3]} 79. Qf7 {[%clk 0:00:05.9]} 79...
Qg4+ {[%clk 0:00:01.9]} 80. Kf8 {[%clk 0:00:05.8]} 80... Qb4+ {[%clk 0:00:01.7]}
81. Qe7+ {[%clk 0:00:05.9]} 81... Qxe7+ {[%clk 0:00:02.3]} 82. Kxe7 {[%clk
0:00:06.8]} 1-0

[Event "*** Titled Tuesday Blitz"]
[Site "Chess.com"]
[Date "2020.04.07"]
[Round "6"]
[White "Artem_Sadovsky"]
[Black "Kimster98"]
[Result "0-1"]
[WhiteElo "2621"]
[BlackElo "2498"]
[TimeControl "180+1"]
[EndTime "14:09:42 PDT"]
[Termination "Kimster98 won by resignation"]

1. Nf3 {[%clk 0:03:00.9]} 1... Nf6 {[%clk 0:02:58.2]} 2. g3 {[%clk 0:03:01.8]}
2... d5 {[%clk 0:02:52.1]} 3. Bg2 {[%clk 0:03:02.7]} 3... c5 {[%clk 0:02:52.8]}
4. O-O {[%clk 0:03:03.3]} 4... Nc6 {[%clk 0:02:53.2]} 5. c4 {[%clk 0:03:03]}
5... d4 {[%clk 0:02:52.8]} 6. e3 {[%clk 0:03:03.3]} 6... e5 {[%clk 0:02:52.6]}
7. exd4 {[%clk 0:03:03.6]} 7... exd4 {[%clk 0:02:53.5]} 8. Re1+ {[%clk
0:03:03.9]} 8... Be7 {[%clk 0:02:53.1]} 9. d3 {[%clk 0:03:04.6]} 9... O-O {[%clk
0:02:51.7]} 10. Bg5 {[%clk 0:03:05.2]} 10... h6 {[%clk 0:02:42.5]} 11. Bxf6
{[%clk 0:03:04.4]} 11... Bxf6 {[%clk 0:02:43.4]} 12. Nbd2 {[%clk 0:03:05.3]}
12... Bf5 {[%clk 0:02:36.9]} 13. Ne4 {[%clk 0:03:05.2]} 13... Bxe4 {[%clk
0:02:37.1]} 14. Rxe4 {[%clk 0:03:01]} 14... Qd7 {[%clk 0:02:37.5]} 15. Qe2
{[%clk 0:02:57.2]} 15... Rfe8 {[%clk 0:02:36.7]} 16. Re1 {[%clk 0:02:57.9]}
16... Kf8 {[%clk 0:02:35.5]} 17. Bh3 {[%clk 0:02:53]} 17... Rxe4 {[%clk
0:02:26.3]} 18. Bxd7 {[%clk 0:02:53.5]} 18... Rxe2 {[%clk 0:02:24.2]} 19. Rxe2
{[%clk 0:02:54]} 19... Nb4 {[%clk 0:02:14.9]} 20. Ne1 {[%clk 0:02:24.2]} 20...
Nxa2 {[%clk 0:02:13.8]} 21. Nc2 {[%clk 0:02:24.8]} 21... Nc1 {[%clk 0:01:37.6]}
22. Rd2 {[%clk 0:02:24.8]} 22... Nb3 {[%clk 0:01:38]} 23. Re2 {[%clk 0:02:13.5]}
23... Nc1 {[%clk 0:01:37.3]} 24. Rd2 {[%clk 0:02:12.4]} 24... Nb3 {[%clk
0:01:37.7]} 25. Re2 {[%clk 0:02:08.4]} 25... a6 {[%clk 0:01:35.6]} 26. Ba4
{[%clk 0:02:06.8]} 26... Na5 {[%clk 0:01:34.8]} 27. b4 {[%clk 0:02:02.9]} 27...
cxb4 {[%clk 0:01:34.1]} 28. Nxb4 {[%clk 0:02:03.8]} 28... Rb8 {[%clk 0:01:31.3]}
29. Nd5 {[%clk 0:02:02.4]} 29... Nc6 {[%clk 0:01:09.2]} 30. Rb2 {[%clk
0:01:51.3]} 30... Ne5 {[%clk 0:00:50.4]} 31. Nb6 {[%clk 0:01:51.4]} 31... Rd8
{[%clk 0:00:47.5]} 32. Rb3 {[%clk 0:01:49.8]} 32... Be7 {[%clk 0:00:42.1]} 33.
Nd5 {[%clk 0:01:49]} 33... Bc5 {[%clk 0:00:42.4]} 34. f4 {[%clk 0:01:44.8]}
34... b5 {[%clk 0:00:34]} 35. Bxb5 {[%clk 0:01:19.4]} 35... axb5 {[%clk
0:00:27.7]} 36. fxe5 {[%clk 0:01:20.3]} 36... bxc4 {[%clk 0:00:28]} 37. dxc4
{[%clk 0:01:21.2]} 37... Re8 {[%clk 0:00:23.3]} 38. Nc7 {[%clk 0:01:08.8]} 38...
Rxe5 {[%clk 0:00:17.3]} 39. Rb8+ {[%clk 0:01:09.3]} 39... Ke7 {[%clk 0:00:17.4]}
40. Re8+ {[%clk 0:01:09.9]} 40... Kf6 {[%clk 0:00:17]} 41. Nd5+ {[%clk
0:01:05.2]} 41... Kf5 {[%clk 0:00:16.6]} 42. Rc8 {[%clk 0:00:59.1]} 42... Ba3
{[%clk 0:00:12.4]} 43. Nf4 {[%clk 0:00:56.3]} 43... g5 {[%clk 0:00:10.3]} 44.
Nd3 {[%clk 0:00:51.8]} 44... Re3 {[%clk 0:00:10.6]} 45. Nf2 {[%clk 0:00:45.8]}
45... Rc3 {[%clk 0:00:10.9]} 46. Ra8 {[%clk 0:00:34.1]} 46... d3 {[%clk
0:00:10.1]} 47. Kf1 {[%clk 0:00:30.7]} 47... Rc1+ {[%clk 0:00:09.6]} 48. Kg2
{[%clk 0:00:31.2]} 48... Rc3 {[%clk 0:00:08.3]} 49. Rd8 {[%clk 0:00:30]} 49...
Rxc4 {[%clk 0:00:08.3]} 50. Nxd3 {[%clk 0:00:28.7]} 50... Be7 {[%clk 0:00:07.4]}
51. Rd5+ {[%clk 0:00:24.6]} 51... Ke6 {[%clk 0:00:06.8]} 52. Re5+ {[%clk
0:00:25.5]} 52... Kf6 {[%clk 0:00:07.3]} 53. Ra5 {[%clk 0:00:23.2]} 53... Rc2+
{[%clk 0:00:07.2]} 54. Kf3 {[%clk 0:00:22.4]} 54... Rc3 {[%clk 0:00:06.7]} 55.
Ke4 {[%clk 0:00:22.3]} 55... Kg7 {[%clk 0:00:07.1]} 56. Ra7 {[%clk 0:00:21]}
56... Bf6 {[%clk 0:00:07.5]} 57. g4 {[%clk 0:00:19.5]} 57... Rc4+ {[%clk
0:00:07.5]} 58. Kf3 {[%clk 0:00:20.1]} 58... Rc3 {[%clk 0:00:08.1]} 59. Ke2
{[%clk 0:00:20.6]} 59... Rc2+ {[%clk 0:00:08.4]} 60. Kf3 {[%clk 0:00:21.1]}
60... Rxh2 {[%clk 0:00:09.3]} 61. Nf2 {[%clk 0:00:21.7]} 61... h5 {[%clk
0:00:08]} 62. Kg3 {[%clk 0:00:13.6]} 62... Rxf2 {[%clk 0:00:08.2]} 63. Kxf2
{[%clk 0:00:13.4]} 63... Bd4+ {[%clk 0:00:08.4]} 64. Kf3 {[%clk 0:00:09.6]}
64... Bxa7 {[%clk 0:00:09.3]} 65. Ke4 {[%clk 0:00:09.9]} 65... hxg4 {[%clk
0:00:09.4]} 66. Kf5 {[%clk 0:00:10.8]} 66... g3 {[%clk 0:00:09.9]} 67. Kg4
{[%clk 0:00:11.7]} 67... g2 {[%clk 0:00:10.2]} 68. Kh5 {[%clk 0:00:12.6]} 68...
g4 {[%clk 0:00:10.5]} 69. Kh4 {[%clk 0:00:11]} 69... g1=Q {[%clk 0:00:10.1]} 0-1

[Event "*** Titled Tuesday Blitz"]
[Site "Chess.com"]
[Date "2020.04.07"]
[Round "6"]
[White "Storne89"]
[Black "Vaathi_Coming"]
[Result "0-1"]
[WhiteElo "2620"]
[BlackElo "2849"]
[TimeControl "180+1"]
[EndTime "14:09:48 PDT"]
[Termination "Vaathi_Coming won by checkmate"]

1. e4 {[%clk 0:03:00.9]} 1... d5 {[%clk 0:03:00]} 2. exd5 {[%clk 0:03:00.4]}
2... Qxd5 {[%clk 0:03:00.9]} 3. Nc3 {[%clk 0:03:00.8]} 3... Qd6 {[%clk
0:03:01.8]} 4. Nf3 {[%clk 0:03:00.3]} 4... Nf6 {[%clk 0:03:02.1]} 5. g3 {[%clk
0:03:00.5]} 5... Bg4 {[%clk 0:02:58.2]} 6. Bg2 {[%clk 0:03:00.2]} 6... Nc6
{[%clk 0:02:53.8]} 7. h3 {[%clk 0:02:55.1]} 7... Bh5 {[%clk 0:02:38.5]} 8. d3
{[%clk 0:02:37.7]} 8... e5 {[%clk 0:02:28.8]} 9. O-O {[%clk 0:02:36.8]} 9... Be7
{[%clk 0:02:25.9]} 10. Be3 {[%clk 0:02:31.4]} 10... O-O {[%clk 0:02:21.8]} 11.
g4 {[%clk 0:02:27]} 11... Bg6 {[%clk 0:02:21.1]} 12. Nh4 {[%clk 0:02:26.3]}
12... Rad8 {[%clk 0:02:17.5]} 13. Qf3 {[%clk 0:02:20.6]} 13... Nd4 {[%clk
0:02:04.3]} 14. Bxd4 {[%clk 0:02:19.8]} 14... exd4 {[%clk 0:02:05.2]} 15. Ne2
{[%clk 0:02:02.7]} 15... c6 {[%clk 0:02:00.3]} 16. Ng3 {[%clk 0:01:59]} 16...
Nd5 {[%clk 0:01:49.9]} 17. Nhf5 {[%clk 0:01:57.3]} 17... Qd7 {[%clk 0:01:44.5]}
18. Ne4 {[%clk 0:01:48.5]} 18... Rfe8 {[%clk 0:01:32]} 19. Rfe1 {[%clk
0:01:45.7]} 19... Bxf5 {[%clk 0:01:31.8]} 20. gxf5 {[%clk 0:01:44.5]} 20... Nf6
{[%clk 0:01:31.8]} 21. Re2 {[%clk 0:01:35.4]} 21... Nxe4 {[%clk 0:01:29.2]} 22.
Rxe4 {[%clk 0:01:34]} 22... Bf6 {[%clk 0:01:29.6]} 23. Rae1 {[%clk 0:01:32.5]}
23... h6 {[%clk 0:01:28.5]} 24. a4 {[%clk 0:01:28]} 24... Rxe4 {[%clk
0:01:24.1]} 25. Rxe4 {[%clk 0:01:25.9]} 25... Qd6 {[%clk 0:01:23.7]} 26. Qe2
{[%clk 0:01:17]} 26... Kf8 {[%clk 0:01:22.7]} 27. b3 {[%clk 0:01:11.1]} 27... a5
{[%clk 0:01:17.8]} 28. Qf3 {[%clk 0:01:10.9]} 28... b5 {[%clk 0:01:15.5]} 29.
Re1 {[%clk 0:01:07.2]} 29... bxa4 {[%clk 0:01:09.1]} 30. bxa4 {[%clk 0:01:07]}
30... Qb4 {[%clk 0:01:09.3]} 31. Ra1 {[%clk 0:01:06.8]} 31... Rd6 {[%clk
0:00:51.1]} 32. Qd1 {[%clk 0:01:05.5]} 32... Kg8 {[%clk 0:00:49.2]} 33. Qb1
{[%clk 0:01:04.4]} 33... Qc5 {[%clk 0:00:40.5]} 34. Qb8+ {[%clk 0:01:02]} 34...
Rd8 {[%clk 0:00:40.6]} 35. Qb3 {[%clk 0:00:49.5]} 35... Qxf5 {[%clk 0:00:38]}
36. Re1 {[%clk 0:00:49.8]} 36... Qf4 {[%clk 0:00:27.8]} 37. Qc4 {[%clk
0:00:46.2]} 37... Bh4 {[%clk 0:00:21.9]} 38. Re2 {[%clk 0:00:45.1]} 38... Rb8
{[%clk 0:00:18.9]} 39. Qxc6 {[%clk 0:00:34.8]} 39... Rb1+ {[%clk 0:00:09.2]} 40.
Bf1 {[%clk 0:00:34.9]} 40... f5 {[%clk 0:00:07.1]} 41. Qg6 {[%clk 0:00:27.7]}
41... Qg5+ {[%clk 0:00:07]} 42. Qxg5 {[%clk 0:00:27]} 42... hxg5 {[%clk
0:00:06.4]} 43. Re5 {[%clk 0:00:22.3]} 43... f4 {[%clk 0:00:05.3]} 44. Rxa5
{[%clk 0:00:20.4]} 44... Rd1 {[%clk 0:00:04.4]} 45. Re5 {[%clk 0:00:18.6]} 45...
Kf7 {[%clk 0:00:02.8]} 46. a5 {[%clk 0:00:17.7]} 46... Ra1 {[%clk 0:00:03.3]}
47. Rd5 {[%clk 0:00:16.3]} 47... Kf6 {[%clk 0:00:02.5]} 48. Rxd4 {[%clk
0:00:14.4]} 48... Rxa5 {[%clk 0:00:02.4]} 49. Be2 {[%clk 0:00:09.9]} 49... Ra1+
{[%clk 0:00:02.3]} 50. Kg2 {[%clk 0:00:09.9]} 50... Rc1 {[%clk 0:00:02.5]} 51.
c4 {[%clk 0:00:08]} 51... Rc2 {[%clk 0:00:02.4]} 52. Kf3 {[%clk 0:00:08.4]}
52... Ke5 {[%clk 0:00:01.9]} 53. Rd5+ {[%clk 0:00:08.6]} 53... Kf6 {[%clk
0:00:02.1]} 54. d4 {[%clk 0:00:09.1]} 54... Rc3+ {[%clk 0:00:02.4]} 55. Ke4
{[%clk 0:00:09.6]} 55... Rc2 {[%clk 0:00:02.4]} 56. Kf3 {[%clk 0:00:06.2]} 56...
Rc3+ {[%clk 0:00:02.4]} 57. Ke4 {[%clk 0:00:06.3]} 57... Bxf2 {[%clk 0:00:02.1]}
58. Rd6+ {[%clk 0:00:01.7]} 58... Ke7 {[%clk 0:00:02.5]} 59. Kd5 {[%clk
0:00:02.2]} 59... Bxd4 {[%clk 0:00:01.9]} 60. Bg4 {[%clk 0:00:01.1]} 60... Bf6
{[%clk 0:00:01.7]} 61. Rd7+ {[%clk 0:00:02]} 61... Kf8 {[%clk 0:00:02.2]} 62. c5
{[%clk 0:00:02.9]} 62... Rd3+ {[%clk 0:00:02.3]} 63. Ke6 {[%clk 0:00:02.7]}
63... Re3+ {[%clk 0:00:02.6]} 64. Kd5 {[%clk 0:00:02.7]} 64... f3 {[%clk
0:00:03]} 65. Kc6 {[%clk 0:00:03.6]} 65... f2 {[%clk 0:00:03.1]} 66. Rd1 {[%clk
0:00:02.5]} 66... Re1 {[%clk 0:00:03.4]} 67. Rd7 {[%clk 0:00:01.7]} 67... f1=Q
{[%clk 0:00:03.1]} 68. Be6 {[%clk 0:00:02.6]} 68... Qa6+ {[%clk 0:00:02.9]} 69.
Kd5 {[%clk 0:00:02.7]} 69... Qxe6# {[%clk 0:00:03.8]} 0-1

[Event "*** Titled Tuesday Blitz"]
[Site "Chess.com"]
[Date "2020.04.07"]
[Round "6"]
[White "SCIM"]
[Black "vlad_Sid"]
[Result "0-1"]
[WhiteElo "2480"]
[BlackElo "2637"]
[TimeControl "180+1"]
[EndTime "14:09:48 PDT"]
[Termination "vlad_Sid won by checkmate"]

1. d4 {[%clk 0:03:00.9]} 1... Nf6 {[%clk 0:02:57]} 2. c4 {[%clk 0:03:01.2]} 2...
c5 {[%clk 0:02:56.5]} 3. d5 {[%clk 0:03:00.3]} 3... b5 {[%clk 0:02:56.3]} 4.
cxb5 {[%clk 0:03:01.2]} 4... a6 {[%clk 0:02:56.3]} 5. bxa6 {[%clk 0:03:01.7]}
5... g6 {[%clk 0:02:55.9]} 6. Nc3 {[%clk 0:03:02.1]} 6... Bg7 {[%clk 0:02:56.2]}
7. Nf3 {[%clk 0:03:01.1]} 7... O-O {[%clk 0:02:56.2]} 8. a7 {[%clk 0:03:01.7]}
8... Rxa7 {[%clk 0:02:56.1]} 9. e4 {[%clk 0:03:02]} 9... d6 {[%clk 0:02:54.5]}
10. Be2 {[%clk 0:03:00.1]} 10... Ba6 {[%clk 0:02:53.3]} 11. O-O {[%clk
0:02:59.6]} 11... Qb6 {[%clk 0:02:48.4]} 12. a4 {[%clk 0:02:55.2]} 12... Nbd7
{[%clk 0:02:41.8]} 13. Ra3 {[%clk 0:02:47.9]} 13... Rb8 {[%clk 0:02:39.1]} 14.
Qc2 {[%clk 0:02:36.8]} 14... Bxe2 {[%clk 0:02:33.1]} 15. Qxe2 {[%clk 0:02:32.8]}
15... Ne8 {[%clk 0:02:28.7]} 16. h4 {[%clk 0:02:26.4]} 16... Qa6 {[%clk
0:02:19.5]} 17. Qc2 {[%clk 0:02:07.8]} 17... Nc7 {[%clk 0:02:15.6]} 18. h5
{[%clk 0:02:05.7]} 18... Rb4 {[%clk 0:02:07.5]} 19. h6 {[%clk 0:02:03.4]} 19...
Bxc3 {[%clk 0:01:55.8]} 20. Qxc3 {[%clk 0:01:52.3]} 20... f6 {[%clk 0:01:55.3]}
21. Nd2 {[%clk 0:01:33.5]} 21... Rxa4 {[%clk 0:01:54]} 22. Rxa4 {[%clk
0:01:32.1]} 22... Qxa4 {[%clk 0:01:54.9]} 23. Qh3 {[%clk 0:01:32.5]} 23... Ne5
{[%clk 0:01:47.7]} 24. b3 {[%clk 0:01:22]} 24... Qd7 {[%clk 0:01:44.3]} 25. Qg3
{[%clk 0:01:12]} 25... Qg4 {[%clk 0:01:43.6]} 26. Qe3 {[%clk 0:01:09.8]} 26...
Nb5 {[%clk 0:01:41.9]} 27. Bb2 {[%clk 0:01:06.1]} 27... Ra2 {[%clk 0:01:41.1]}
28. Bxe5 {[%clk 0:01:05.3]} 28... fxe5 {[%clk 0:01:39.1]} 29. Nf3 {[%clk
0:00:58.4]} 29... Nd4 {[%clk 0:01:37.6]} 30. Nxd4 {[%clk 0:00:58.3]} 30... exd4
{[%clk 0:01:36.5]} 31. Qd3 {[%clk 0:00:54.8]} 31... Qf4 {[%clk 0:01:31.2]} 32.
b4 {[%clk 0:00:46.2]} 32... cxb4 {[%clk 0:01:14.8]} 33. Qxd4 {[%clk 0:00:40.6]}
33... Qxh6 {[%clk 0:01:15.1]} 34. Qxb4 {[%clk 0:00:41.2]} 34... Re2 {[%clk
0:01:13.9]} 35. Qc4 {[%clk 0:00:36.9]} 35... Qd2 {[%clk 0:01:10.4]} 36. Qc8+
{[%clk 0:00:35]} 36... Kg7 {[%clk 0:01:10.3]} 37. Qe6 {[%clk 0:00:35.5]} 37...
Qg5 {[%clk 0:01:09.4]} 38. Rb1 {[%clk 0:00:31.8]} 38... Qh4 {[%clk 0:01:02.7]}
39. g3 {[%clk 0:00:12.5]} 39... Qxe4 {[%clk 0:01:02.4]} 40. Qxe4 {[%clk
0:00:12.1]} 40... Rxe4 {[%clk 0:01:03.3]} 41. Rb5 {[%clk 0:00:12.3]} 41... Kf6
{[%clk 0:01:02.7]} 42. Kg2 {[%clk 0:00:10.7]} 42... Ke5 {[%clk 0:01:02.6]} 43.
Rb8 {[%clk 0:00:10.7]} 43... Kxd5 {[%clk 0:00:57.8]} 44. Rh8 {[%clk 0:00:11.6]}
44... h5 {[%clk 0:00:57]} 45. Kf3 {[%clk 0:00:10.4]} 45... Re6 {[%clk
0:00:56.8]} 46. Kf4 {[%clk 0:00:10]} 46... Rf6+ {[%clk 0:00:57]} 47. Ke3 {[%clk
0:00:10.1]} 47... Ke6 {[%clk 0:00:55]} 48. f4 {[%clk 0:00:10]} 48... Kf5 {[%clk
0:00:54.8]} 49. Kf3 {[%clk 0:00:09.1]} 49... e5 {[%clk 0:00:54.3]} 50. fxe5
{[%clk 0:00:07.8]} 50... dxe5 {[%clk 0:00:55.2]} 51. Re8 {[%clk 0:00:07]} 51...
Ra6 {[%clk 0:00:55.1]} 52. Rf8+ {[%clk 0:00:06.8]} 52... Kg5 {[%clk 0:00:55.5]}
53. Re8 {[%clk 0:00:05.2]} 53... Ra3+ {[%clk 0:00:55.4]} 54. Kf2 {[%clk
0:00:05.7]} 54... Kg4 {[%clk 0:00:54.7]} 55. Rxe5 {[%clk 0:00:05.7]} 55... Rf3+
{[%clk 0:00:54.8]} 56. Kg2 {[%clk 0:00:05.9]} 56... Rxg3+ {[%clk 0:00:54.8]} 57.
Kh2 {[%clk 0:00:06.8]} 57... Rf3 {[%clk 0:00:54.6]} 58. Rb5 {[%clk 0:00:06.1]}
58... Rf5 {[%clk 0:00:54.1]} 59. Rb4+ {[%clk 0:00:05.6]} 59... Rf4 {[%clk
0:00:53.5]} 60. Rb5 {[%clk 0:00:05.8]} 60... g5 {[%clk 0:00:54]} 61. Kg2 {[%clk
0:00:06.3]} 61... Ra4 {[%clk 0:00:53.8]} 62. Rb2 {[%clk 0:00:05.8]} 62... h4
{[%clk 0:00:53.9]} 63. Kh2 {[%clk 0:00:06.3]} 63... Ra5 {[%clk 0:00:52.7]} 64.
Kg2 {[%clk 0:00:06.4]} 64... Kh5 {[%clk 0:00:52.6]} 65. Kh2 {[%clk 0:00:07]}
65... g4 {[%clk 0:00:50.3]} 66. Kg2 {[%clk 0:00:07.9]} 66... h3+ {[%clk
0:00:36.2]} 67. Kg3 {[%clk 0:00:07.4]} 67... Ra3+ {[%clk 0:00:35.5]} 68. Kh2
{[%clk 0:00:07.8]} 68... Kh4 {[%clk 0:00:35.9]} 69. Rb1 {[%clk 0:00:07.9]} 69...
Ra2+ {[%clk 0:00:28.3]} 70. Kh1 {[%clk 0:00:08.3]} 70... Ra4 {[%clk 0:00:25.4]}
71. Rc1 {[%clk 0:00:08.5]} 71... g3 {[%clk 0:00:23.1]} 72. Rb1 {[%clk
0:00:08.8]} 72... Kg4 {[%clk 0:00:21.2]} 73. Rc1 {[%clk 0:00:08.7]} 73... Rf4
{[%clk 0:00:21.3]} 74. Rb1 {[%clk 0:00:08.4]} 74... h2 {[%clk 0:00:17.2]} 75.
Rc1 {[%clk 0:00:04.7]} 75... Kh3 {[%clk 0:00:17.2]} 76. Rg1 {[%clk 0:00:04.3]}
76... Rf1 {[%clk 0:00:15.8]} 77. Rxf1 {[%clk 0:00:02.4]} 77... g2# {[%clk
0:00:16.7]} 0-1